Cogmind - Beta 16 @@@ ROGUE MODE // 2025.11.20 @ 00:48:04 Player: Boris Result: Destroyed by exploding Nuclear Reactor Performance ------------- Evolutions (4) 2000 Regions Visited (6) 1200 Robots Destroyed (97) 485 Value Destroyed (4042) 4042 Prototype IDs (15) 300 Alien Tech Used (0) 0 Bonus (2437) 2437 TOTAL SCORE: 10464 Bonus ------- High Alert Combat Kills 64 Follower Combat Kills 441 Entered Garrisons 200 Used RIF Installer 1000 Registered with UFD 300 Met Optimus in HQ 500 Friendly Fire -68 Cogmind --------- Core Integrity 0/850 Matter 218/300 Energy 182/185 System Corruption 18% Temperature Cool (0) Movement Rolling (110) Ox2 Location -6/Factory Parts ------- > --- POWER (2) -------- Light Ion Engine Light Fission Core > --- PROPULSION (4) --- Carbon-fiber Leg Wheel Wheel Compact Wheel > --- UTILITY (7) ------ Huge Storage Unit IFF Parser Core Analyzer Layered Light Armor Plating (fused) Relay Coupler [NC] (5) Relay Coupler [Grunt] (14) Relay Coupler [Sentry] (5) > --- WEAPON (2) ------- Remote Datajack Companion Sword > --- INVENTORY (25) --- Carbon-fiber Leg Flexi-carbon Leg Advanced Heat Sink Advanced Heat Sink High-capacity Matter Pod (200) Deep Structural Scanner Transport Network Coupler Weapon Mount Transmission Jammer Advanced ECM Suite Phase Shifter Cloaking Device Relay Coupler [NC] (31) Relay Coupler [Grunt] (27) Relay Coupler [Grunt] (33) A0-MCA's Component Scanner Mapping Drone Bay (3/3) Heavy Plasma Cannon Gauss Rifle Precision Grenade Launcher Remote Datajack Improved Remote Datajack CPS Tube (2) CPS Tube (2) Multitool Peak State ------------ > --- POWER ------------ Reinforced Deuterium Engine Particle Reactor > --- PROPULSION ------- Flexi-carbon Leg Arachnoskeleton > --- UTILITY ---------- Huge Storage Unit IFF Parser Core Analyzer Force Field Hacking Suite Relay Coupler [Sentry] Improved System Restoration Module > --- WEAPON ----------- Improved Remote Datajack Companion Sword > --- INVENTORY -------- Particle Reactor Carbon-fiber Leg Advanced Heat Sink High-capacity Matter Pod Deep Structural Scanner Transport Network Coupler Advanced ECM Suite Cloaking Device Improved Light Armor Plating Layered Light Armor Plating Relay Coupler [NC] Relay Coupler [NC] Relay Coupler [NC] Relay Coupler [Swarmer] Relay Coupler [Grunt] Relay Coupler [Grunt] Relay Coupler [Grunt] Relay Coupler [Hunter] A0-MCA's Component Scanner Mapping Drone Bay Flak Gun Precision Grenade Launcher CPS Tube CPS Tube Multitool [Rating: 86] Favorites ----------- Power Improved Ion Engine Engine Improved Ion Engine Power Core Light Fission Core Reactor Particle Reactor Propulsion Light Treads Treads Light Treads Leg Flexi-carbon Leg Wheel Wheel Utility Huge Storage Unit Device Seismic Detector Storage Huge Storage Unit Processor Core Analyzer Hackware Hacking Suite Protection Light Armor Plating Weapon Companion Sword Energy Gun EM Shotgun Energy Cannon Subdweller Beam Cannon Ballistic Gun Barrage Gun Launcher Grenade Launcher Special Weapon Improved Remote Datajack Slashing Weapon Companion Sword Special Melee Weapon Improved Datajack Build | -11 -10 -10 -9 -6 -6 -6 ------- Run | Yrd Mat Sub Scr Fac Gar Fac Slots Evolved 8 | . . . . 8 . . Power 1 | . . . . 1 . . Propulsion 2 | . . . . 2 . . Utility 5 | . . . . 5 . . Weapon . | . . . . . . . Parts Attached 118 | 6 11 16 3 19 28 35 Power 15 | 1 . 2 . 2 4 6 Engine 10 | 1 . 2 . 2 3 2 Core 3 | . . . . . 1 2 Reactor 2 | . . . . . . 2 Propulsion 31 | 2 . 4 1 4 5 15 Treads 4 | 2 . 2 . . . . Leg 10 | . . . . . 5 5 Wheel 17 | . . 2 1 4 . 10 Hover . | . . . . . . . Flight . | . . . . . . . Utility 47 | 1 3 6 1 12 13 11 Device 15 | . 1 3 1 5 1 4 Storage 3 | 1 1 . . . . 1 Processor 3 | . . . . 1 2 . Hackware 16 | . . . . 3 7 6 Protection 10 | . 1 3 . 3 3 . Artifact . | . . . . . . . Weapon 25 | 2 8 4 1 1 6 3 Energy Gun 4 | . 3 1 . . . . Energy Cannon 3 | . . 2 . . . 1 Ballistic Gun 7 | 2 3 1 . . 1 . Ballistic Cannon . | . . . . . . . Launcher 3 | . 1 . . . 1 1 Special Weapon 4 | . . . . . 3 1 Impact Weapon . | . . . . . . . Slashing Weapon 3 | . 1 . 1 1 . . Piercing Weapon . | . . . . . . . Special Melee Weapon 1 | . . . . . 1 . Unidentified Prototypes 2 | . . . 1 . . 1 Parts Lost 36 | . 1 2 . 5 10 18 Power 9 | . . . . 1 3 5 Propulsion 17 | . . 1 . 1 4 11 Utility 7 | . . . . 3 2 2 Weapon 3 | . 1 1 . . 1 . Highest Loss Streak 7 | . 1 1 . 2 4 7 To Critical Strikes . | . . . . . . . Average Backups 19 | 1 18 12 20 21 22 24 Power 1 | . 2 1 2 . . . Propulsion 1 | . . . 2 3 1 1 Utility 10 | . 9 6 9 11 14 16 Weapon 4 | . 6 3 6 3 2 2 Tool/Special . | . . . . . . . Unused Backups 45 | . 6 6 6 4 6 17 Power 2 | . . . 2 . . . Propulsion 4 | . . . . 2 . 2 Utility 24 | . 1 5 1 1 5 11 Weapon 12 | . 5 1 3 1 1 1 Tool/Special 3 | . . . . . . 3 Average Slot Usage (%) 92 | . 99 94 92 92 84 88 Engine 11 | . 14 14 14 11 8 5 Treads 9 | . 28 15 . 5 . . Leg 3 | . . . . . 13 10 Wheel 11 | . . 12 28 20 5 5 Device 10 | . 12 10 9 13 7 12 Storage 9 | . 14 7 14 6 5 6 Processor 2 | . . . . 4 9 6 Hackware 6 | . . . . 13 16 18 Protection 3 | . . 6 4 5 2 . Energy Gun 6 | . 24 6 . . . . Energy Cannon 5 | . . 12 12 . . . Ballistic Gun 2 | . 3 7 . . . . Special Weapon 1 | . . . . . 2 4 Slashing Weapon 4 | . . . 7 9 7 6 Peak Build Rating 86 | 6 12 17 24 55 82 86 Average Rating 34 | 4 11 14 19 48 67 70 On Entrance 25 | . 6 12 17 22 49 74 Avg Prop Armor Cover (%) 8 | . . 6 8 10 9 7 Naked Turns . | . . . . . . . Heaviest Build 138 | 14 94 106 106 116 124 138 Greatest Support 115 | 40 40 40 39 63 115 70 Greatest Overweight (x) 10 | . 2 9 4 3 6 10 Average Overweight (x) 1 | . 1 1 2 1 1 1 Largest Inventory Capacity 25 | 8 25 25 25 25 25 25 Average Capacity 22 | 6 20 15 25 25 25 25 Most Carried 25 | 3 25 25 25 25 25 25 Average Carried 20 | 1 18 13 23 24 23 24 Final Capacity 25 | 8 25 25 25 25 25 25 Final Carried 25 | 3 25 24 25 24 25 25 Class Distribution -------------------- 56% | Mutant 27% | Bothacker-Mutant 5% | Hacker-Mutant 4% | Scavenger-Mutant Dominant Class ---------------- Mutant | -10/Materials Mutant | -10/Subcaves Mutant | -9/Scraptown Hacker-Mutant | -6/Factory Bothacker-Mutant | -6/Garrison Bothacker-Mutant | -6/Factory Resources | -11 -10 -10 -9 -6 -6 -6 ----------- Run | Yrd Mat Sub Scr Fac Gar Fac Matter Collected 3853 | 276 594 629 20 235 1037 1062 Remotely . | . . . . . . . Salvage Created 4475 | 114 721 556 . 574 696 1814 Parts 264 | 6 52 31 . 22 52 101 Haulers Intercepted 2 | . 2 . . . . . Recyclers Shooed 1 | . . . . . . 1 Parts Field Recycled . | . . . . . . . Retrieved Matter . | . . . . . . . Parts Self-Destructed 18 | . . 18 . . . . Prevented . | . . . . . . . Parts Restored . | . . . . . . . Kills | -11 -10 -10 -9 -6 -6 -6 ------- Run | Yrd Mat Sub Scr Fac Gar Fac Combat Hostiles Destroyed 61 | . 17 11 . 5 10 18 Melee 27 | . . . . 5 10 12 Guns 16 | . 8 6 . . . 2 Cannons 8 | . . 4 . . . 4 AOE 9 | . 9 . . . . . Classes Destroyed 18 | 2 7 2 . 3 3 1 Worker 8 | . 3 . . 2 . 3 Builder 5 | . 1 . . . . 4 Tunneler 4 | 2 1 . . . . 1 Hauler 2 | . 2 . . . . . Recycler 10 | 1 1 . . 1 . 7 Mechanic 1 | . . . . 1 . . Operator 1 | . 1 . . . . . Watcher 3 | . 2 . . . . 1 Swarmer 15 | . 8 . . . 1 6 Grunt 12 | . 9 . . 2 . 1 Brawler 2 | . . . . 1 1 . Duelist 1 | . . . . . . 1 Sentry 5 | . . . . 2 2 1 Specialist 2 | . . . . . 2 . Hunter 5 | . . . . . 1 4 Programmer 10 | . . . . . 5 5 Artisan 1 | . . 1 . . . . Subdweller 11 | . . 11 . . . . Best Kill Streak 5 | 1 5 2 . 3 2 4 Combat Bots Only 4 | . 4 2 . 2 2 3 Max Kills in Single Turn 3 | 1 3 1 . 1 1 1 Gunslinging . | . . . . . . . Exploded 2 | . 2 . . . . . Melee 1 | . . . . 1 1 1 Uniques/NPCs Destroyed . | . . . . . . . Combat | -11 -10 -10 -9 -6 -6 -6 -------- Run | Yrd Mat Sub Scr Fac Gar Fac Hostile Shots Fired 651 | . 32 48 . 109 204 258 Missed 184 | . 12 16 . 29 57 70 Hits 467 | . 20 32 . 80 147 188 Melee 3 | . . . . 2 . 1 Projectile 464 | . 20 32 . 78 147 187 AOE 2 | . . 2 . . . . Critical Strikes 9 | . . 1 . . 4 4 Part Disruptions 1 | . . . . 1 . . Damage Taken 6119 | . 305 741 . 661 1785 2627 Core 917 | . 30 33 . 104 230 520 Absorbed by Shields 827 | . . . . 224 181 422 Regen/Repaired (Parts) 249 | . 26 . . 87 . 136 Core Remaining (%) 87 | 100 . . 74 . . . Volleys Fired 230 | 5 50 60 . . 50 65 Largest 2 | 2 2 2 . . 1 1 Hottest 160 | 40 90 160 . . 33 90 Shots Fired 314 | 10 92 99 . . 50 63 Gun 161 | 10 84 61 . . . 6 Cannon 68 | . . 38 . . . 30 Launcher 9 | . 8 . . . 1 . Special 76 | . . . . . 49 27 Kinetic 74 | 10 32 26 . . . 6 Thermal 92 | . . 38 . . 24 30 Explosive 9 | . 8 . . . 1 . Electromagnetic 87 | . 52 35 . . . . Robot Hit Streak 13 | 5 9 13 . . 12 11 Robot Miss Streak 6 | 1 4 4 . . 5 6 Penetration Max . | . . . . . . . Secondary Targets . | . . . . . . . Shots Hit Robots 305 | 7 63 60 . 24 71 80 Core Hits 153 | 3 50 26 . 14 21 39 Critical Kills 1 | . . 1 . . . . Critical Parts Destroyed 1 | 1 . . . . . . Critical Strikes 4 | 1 . 1 . 2 . . Meltdown 1 | . . 1 . . . . Destroy 1 | 1 . . . . . . Melee Attacks 176 | . 1 5 . 44 63 63 Impact . | . . . . . . . Slashing 176 | . 1 5 . 44 63 63 Piercing . | . . . . . . . Sneak Attacks 27 | . . 1 . 4 4 18 Combat Hostiles 1 | . . . . . . 1 Follow-up Attacks 5 | . . . . 1 4 . Damage Inflicted 8162 | 90 1400 1065 . 1084 1711 2812 Guns 1751 | 87 968 619 . . . 77 Cannons 927 | . . 398 . . . 529 Explosions 422 | . 422 . . . . . Melee 4916 | . . 48 . 1084 1578 2206 Ramming 13 | 3 10 . . . . . Kinetic 755 | 87 347 244 . . . 77 Thermal 1157 | . 97 398 . . 133 529 Explosive 325 | . 325 . . . . . Electromagnetic 996 | . 621 375 . . . . Impact . | . . . . . . . Slashing 4916 | . . 48 . 1084 1578 2206 Piercing . | . . . . . . . Highest Corruption 18 | . . . . 10 17 18 Average Corruption 12 | . . . . 4 13 14 Corruption Purged 7 | . . . . . . 7 Corruption Blocked . | . . . . . . . Effects 175 | . . . . 10 71 94 Message Errors 52 | . . . . 4 23 25 Matter Fused 36 | . . . . 2 18 16 Heat Flow Errors 20 | . . . . . 9 11 Energy Discharges 23 | . . . . 2 7 14 Parts Rejected 3 | . . . . . 1 2 Parts Fused 1 | . . . . . . 1 Data Loss (minor) 21 | . . . . 1 7 13 Data Loss (major) 6 | . . . . . 1 5 Alerts 7 | . . . . 1 3 3 Misdirections 4 | . . . . . 2 2 Weapon Failures 2 | . . . . . . 2 Overload Shots . | . . . . . . . Overflow Damage 305 | . 6 . . 2 106 191 Projectiles 23 | . . . . . . 23 Explosions 6 | . 6 . . . . . Melee 276 | . . . . 2 106 168 Knockbacks 1 | 1 . . . . . . Impact 1 | 1 . . . . . . Kinetic . | . . . . . . . Secondary . | . . . . . . . Self-Inflicted Damage 90 | . 90 . . . . . Shots 3 | . 3 . . . . . Rammed 3 | 1 2 . . . . . Targets Rammed 3 | 1 2 . . . . . Kicked . | . . . . . . . Crushed . | . . . . . . . Highest Temperature 348 | . 176 60 . . 278 348 Average Temperature 90 | . 55 20 . . 98 133 Received Heat Transfer 631 | . 90 171 . 159 160 51 Siege Activations . | . . . . . . . Martial Activations . | . . . . . . . Shielding Activations . | . . . . . . . Robots Disrupted . | . . . . . . . Combat Hostiles . | . . . . . . . Robots Corrupted . | . . . . . . . Combat Hostiles . | . . . . . . . Parts Fried 7 | . 1 6 . . . . Impact Corruptions . | . . . . . . . Robots Melted 1 | . . 1 . . . . Combat Hostiles 1 | . . 1 . . . . Parts Melted 13 | . . 4 . . 1 8 Heat Transferred 1893 | . 150 518 . . 475 750 Parts Sabotaged . | . . . . . . . Parts Stolen . | . . . . . . . Parts Stripped . | . . . . . . . Power Chain Reactions 2 | . 2 . . . . . Alert | -11 -10 -10 -9 -6 -6 -6 ------- Run | Yrd Mat Sub Scr Fac Gar Fac Maximum Alert Level 2 | . 1 . . . 2 1 Low Security (%) 75 | 100 97 . . 100 29 75 Level 1 16 | . 2 . . . 37 24 Level 2 7 | . . . . . 33 . Level 3 . | . . . . . . . Level 4 . | . . . . . . . Level 5 . | . . . . . . . High Security . | . . . . . . . Max Security . | . . . . . . . Peak Influence 575 | 5 219 . . 50 575 301 Initial 301 | . . . . . 13 301 Average 133 | . 70 . . 10 303 122 Influence Increases 2560 | 15 607 30 . 233 982 693 Destroy 0b10 Robot/C 1180 | . 340 . . 100 380 360 Destroy 0b10 Robot/NC 185 | 15 55 . . 20 5 90 Destroy Leader 264 | . 88 . . 30 30 116 Allied During Kill 69 | . . . . . 56 13 Successful Hack 47 | . 15 . . 16 6 10 Select Force Hacks 90 | . 30 . . 30 . 30 Disable Machine 45 | . 15 . . 15 . 15 Anti-Garrison Action 450 | . . . . . 450 . Destroy Structure 155 | . 64 . . 7 55 29 Lose Combat Pursuer 75 | . . 30 . 15 . 30 Influence Decreases 2406 | 15 551 66 20 214 426 1114 Entered New Map 328 | . . 28 20 . 6 274 Time Decay 1348 | 15 541 38 . 194 . 560 Lost Part 290 | . 10 . . 10 100 170 Lost Ally 440 | . . . . 10 320 110 Squads Dispatched 21 | . 6 . . 3 . 12 Investigation 9 | . 2 . . 2 . 5 Extermination 6 | . . . . 1 . 5 Reinforcement 6 | . 4 . . . . 2 Assault . | . . . . . . . Garrison . | . . . . . . . Intercept . | . . . . . . . Searches Triggered . | . . . . . . . Construction Impeded 2 | . . . . . . 2 Haulers Reinforced . | . . . . . . . Active Scanning Responses . | . . . . . . . Cargo Convoy Interrupts . | . . . . . . . Alert ID Control Effect 5 | . . . . . 3 2 Stealth | -11 -10 -10 -9 -6 -6 -6 --------- Run | Yrd Mat Sub Scr Fac Gar Fac Distress Signals 2 | . 1 . . . 1 . Communications Jammed . | . . . . . . . Distress Signals . | . . . . . . . Times Spotted 135 | . 33 12 . 9 36 45 Peak Tracking Total 6 | . 5 2 . 5 6 5 Tactical Retreats 9 | . . 1 . 1 1 6 ECM-based Alert Blocks 11 | . . . . . 1 10 Traps | -11 -10 -10 -9 -6 -6 -6 ------- Run | Yrd Mat Sub Scr Fac Gar Fac Traps Triggered 15 | . 1 . . 3 6 5 Indirectly . | . . . . . . . Trap Hack Attempts . | . . . . . . . Triggered . | . . . . . . . Disarmed 6 | . . . . . . 6 Reprogrammed . | . . . . . . . Reused . | . . . . . . . Traps Extracted . | . . . . . . . Installed . | . . . . . . . Triggered . | . . . . . . . Machines | -11 -10 -10 -9 -6 -6 -6 ---------- Run | Yrd Mat Sub Scr Fac Gar Fac Machines Disabled 11 | . 1 1 . 1 7 1 Max in Single Turn 2 | . 1 1 . 1 2 1 Garrison Access 1 | . . . . . . 1 Garrison Relay 5 | . . . . . 5 . Phase Generator 1 | . . . . . 1 . Machines Repaired . | . . . . . . . Machines Dismantled . | . . . . . . . Machines Sabotaged . | . . . . . . . Overloaded Fab Kills . | . . . . . . . Hacking | -11 -10 -10 -9 -6 -6 -6 --------- Run | Yrd Mat Sub Scr Fac Gar Fac Machines Accessed 39 | . 8 2 4 8 3 14 Terminals 18 | . 5 . . 4 3 6 Fabricators 2 | . . . . . . 2 Repair Stations 3 | . 1 . . 1 . 1 Recycling Units 7 | . 2 . . 2 . 3 Scanalyzers 1 | . . . . . . 1 Garrison Access 2 | . . . . 1 . 1 Total Hacks 129 | . 26 5 39 24 4 31 Successful 102 | . 17 5 39 21 2 18 Failed 27 | . 9 . . 3 2 13 Catastrophic 4 | . 1 . . . . 3 Database Lockouts . | . . . . . . . Manual 45 | . 17 . . 15 2 11 Terminals 49 | . 19 . . 15 4 11 Fabricators 7 | . . . . . . 7 Repair Stations 10 | . 3 . . 5 . 2 Recycling Units 11 | . 4 . . 2 . 5 Scanalyzers 4 | . . . . . . 4 Garrison Access 4 | . . . . 2 . 2 Terminal Hacks 55 | . 2 5 39 5 2 2 Record 37 | . . 4 33 . . . Part Schematic 1 | . . . . 1 . . Robot Analysis 5 | . . . 5 . . . Open Door 2 | . . . 1 . 1 . Emergency Access Points 1 | . . . . . 1 . Fabricator Index 1 | . . . . 1 . . Disarm Traps 1 | . . . . . . 1 Recall Extermination 1 | . . . . 1 . . Hauler Manifests 2 | . . . . 1 . 1 Zone Layout 3 | . 2 . . 1 . . Proto ID Catalog 1 | . . 1 . . . . Fabricator Hacks 4 | . . . . . . 4 Load Schematic 2 | . . . . . . 2 Build 2 | . . . . . . 2 Repair Station Hacks 7 | . 2 . . 3 . 2 Scan Component 4 | . 1 . . 2 . 1 Repair 3 | . 1 . . 1 . 1 Recycling Unit Hacks 2 | . 2 . . . . . Retrieve Components 2 | . 2 . . . . . Scanalyzer 3 | . . . . . . 3 Retrieve Study 3 | . . . . . . 3 Garrison Access Hacks 3 | . . . . 1 . 2 Unlock Access 1 | . . . . 1 . . Seal Access 1 | . . . . . . 1 Coupler Status 1 | . . . . . . 1 Unauthorized Hacks 28 | . 11 . . 12 . 5 Terminals 21 | . 10 . . 10 . 1 Track 2 | . . . . 1 . 1 Assimilate 1 | . . . . 1 . . Botnet 7 | . 4 . . 3 . . Operators 2 | . 1 . . 1 . . Skim 9 | . 5 . . 4 . . Fabricators 2 | . . . . . . 2 Prioritize 1 | . . . . . . 1 Recompile 1 | . . . . . . 1 Repair Stations . | . . . . . . . Recycling Units 5 | . 1 . . 2 . 2 Tunnel 3 | . 1 . . 1 . 1 Fedlink 2 | . . . . 1 . 1 Scanalyzers . | . . . . . . . Garrison Access . | . . . . . . . Data Cores Recovered . | . . . . . . . Used . | . . . . . . . Hacking Detections 26 | . 7 . . 6 2 11 Full Trace Events 3 | . . . . . 1 2 Feedback Events . | . . . . . . . Feedback Blocked . | . . . . . . . Robot Schematics Acquired . | . . . . . . . Robots Built . | . . . . . . . Authchips . | . . . . . . . Time . | . . . . . . . Total Robot Build Rating . | . . . . . . . Part Schematics Acquired 1 | . . . . 1 . . Parts Built 4 | . . . . . . 4 Authchips 1 | . . . . . . 1 Time 175 | . . . . . . 175 Total Part Build Rating 26 | . . . . . . 26 Part Studies Acquired 2 | . . . . . . 2 Parts Repaired 3 | . 1 . . 1 . 1 Time 96 | . 32 . . 26 . 38 Parts Recycled . | . . . . . . . Recycled Matter . | . . . . . . . Retrieved Matter . | . . . . . . . Retrieved Components 12 | . 12 . . . . . Parts Scanalyzed . | . . . . . . . Part Schematics Acquired . | . . . . . . . Parts Damaged . | . . . . . . . Bothacking | -11 -10 -10 -9 -6 -6 -6 ------------ Run | Yrd Mat Sub Scr Fac Gar Fac Used RIF Installer 2 | . . . . . 2 . Alert ID Control 1 | . . . . . 1 . Robots Hacked 24 | . . . . . 12 12 Non-combat 6 | . . . . . . 6 Combat 18 | . . . . . 12 6 Robot Hacks Applied 31 | . . . . . 14 17 parse_system 2 | . . . . . 1 1 find_fabricator 1 | . . . . . . 1 drop_inventory 1 | . . . . . . 1 locate_stockpiles 1 | . . . . . . 1 map_route 3 | . . . . . . 3 mark_security 1 | . . . . . . 1 find_garrison 1 | . . . . . . 1 spike_heat 4 | . . . . . 3 1 amplify_resonance 1 | . . . . . 1 . wipe_record 1 | . . . . . . 1 overwrite_iff 9 | . . . . . 5 4 formatsys_low 1 | . . . . . . 1 formatsys_high 5 | . . . . . 4 1 Relay Couplers Released 21 | . . . . . 21 . Machine Destruction 21 | . . . . . 21 . Attached 12 | . . . . . 7 5 Fabnet Peak Effective % . | . . . . . . . Robots Rewired 14 | . . . . . 14 . Allies Hacked 2 | . . . . . 2 . Hacks Repelled . | . . . . . . . Allies | -11 -10 -10 -9 -6 -6 -6 -------- Run | Yrd Mat Sub Scr Fac Gar Fac Total Allies 30 | . . . . 1 23 6 Largest Group 8 | . . . . 1 8 4 Highest-Rated Group 196 | . . . . 10 196 122 Highest-Rated Ally 41 | . . . . 10 40 41 Total Orders 5 | . . . . . 3 2 STAY 3 | . . . . . 2 1 FOLLOW 1 | . . . . . 1 . AID 1 | . . . . . . 1 Ally Attacks 124 | . . . . . 85 39 Total Damage 2890 | . . . . . 1681 1209 Kills 17 | . . . . . 13 4 Allies Corrupted . | . . . . . . . Allies Melted . | . . . . . . . Intel | -11 -10 -10 -9 -6 -6 -6 ------- Run | Yrd Mat Sub Scr Fac Gar Fac Active Infowar (turns) 8437 | . 2488 1326 588 665 1377 1993 Optics 116 | . . 116 . . . . Sensors 458 | . . . . 458 . . IFF 2888 | . . . . 109 982 1797 Structural 2202 | . . 433 588 184 758 239 Seismic 3826 | . 2488 1206 . 132 . . Cloaking 1718 | . . . . 421 110 1187 Jamming 3 | . . . . . . 3 ECM 317 | . . . . . 32 285 Robot Analysis Total 5 | . . . 5 . . . Derelict Logs Recovered 7 | . . 2 5 . . . Drone Launches . | . . . . . . . Drone Recoveries . | . . . . . . . Exploration | -11 -10 -10 -9 -6 -6 -6 ------------- Run | Yrd Mat Sub Scr Fac Gar Fac Turns Passed 12819 | 106 2684 2402 2701 820 1796 2310 Spaces Moved 6715 | 52 890 1332 2107 488 787 1059 Core 7 | 7 . . . . . . Treads 1567 | 45 890 632 . . . . Legs 1139 | . . . . . 547 592 Wheels 4002 | . . 700 2107 488 240 467 Hover . | . . . . . . . Flight . | . . . . . . . Fastest Speed 50 | 50 160 120 119 107 112 110 Average Speed 159 | 145 263 156 126 121 158 162 Slowest Speed 400 | 160 320 320 140 135 190 400 Overloaded Moves . | . . . . . . . Propulsion Burnouts . | . . . . . . . Robots Hopped . | . . . . . . . Potential Cave-ins 6 | . . 6 . . . . Cave-ins Triggered . | . . . . . . . Exploration Rate (%) 53 | 4 98 48 95 10 89 29 Regions Visited 6 Branch Regions 2 Pre-discovered Areas 9 | . 1 . 5 1 . 2 Known Exits Taken 1 | . . . . 1 . . Unknown Exits Taken 4 | 1 1 1 1 . . . Scrap Searched 16 | . . 9 7 . . . Spaces Dug 46 | . 12 7 . 7 2 18 Terrain Destroyed 210 | . 72 12 . 7 91 28 Melee 23 | . . . . 7 2 14 Projectile 26 | . . 12 . . . 14 AOE 161 | . 72 . . . 89 . Terrain Rammed . | . . . . . . . Walls Destroyed . | . . . . . . . Machines Disabled . | . . . . . . . Actions | -11 -10 -10 -9 -6 -6 -6 --------- Run | Yrd Mat Sub Scr Fac Gar Fac Total 8258 | 70 1128 1560 2145 655 1218 1482 Wait 495 | 3 114 40 3 68 99 168 Move 6709 | 52 889 1331 2106 487 785 1059 Hop . | . . . . . . . Pick Up 137 | 4 32 26 14 20 25 16 Fast Attach 57 | 5 . 13 3 5 9 22 Attach 54 | 1 4 10 1 11 16 11 Detach 32 | . 2 11 2 1 10 6 Swap 132 | . 25 16 1 10 29 51 Drop 105 | . 9 43 15 12 14 12 Fire 230 | 5 50 60 . . 50 65 Melee 167 | . 1 5 . 41 57 63 Ram . | . . . . . . . Kick . | . . . . . . . Crush 2 | . 2 . . . . . Escape Stasis 28 | . . . . . 20 8 Rewire 104 | . . . . . 103 1 Trap . | . . . . . . . Miscellaneous 6 | . . 5 . . 1 . Route ------- -11/Scrapyard -10/Materials (discovered 5 exits: [*Mat x3] / [*Min] / *Sub) -10/Subcaves (discovered 2 exits: [*Mat] / *Scr) -9/Scraptown (discovered 2 exits: *Fac x2) -6/Factory (discovered 3 exits: Fac / Low / Gar) -6/Garrison (discovered 3 exits: *Fac x3) -6/Factory (discovered 2 exits: Low x2) History --------- Turn | Location | Event 5 | -11/Scrapyard | Discovered new exit (range 15) 107 | -11/Scrapyard | Entered Materials 303 | -10/Materials | Build established: Mutant 315 | -10/Materials | Discovered new exit (range 11) 471 | -10/Materials | Discovered new exit (range 10) 750 | -10/Materials | Discovered new exit (range 4) 1210 | -10/Materials | Repaired EM Shotgun 1619 | -10/Materials | Discovered new exit (range 7) 2133 | -10/Materials | Discovered new exit (range 14) 2791 | -10/Materials | Entered Subcaves 2792 | -10/Subcaves | Approached by a straggling Scientist 2906 | -10/Subcaves | Visited 4L-MR0's lab 2935 | -10/Subcaves | Found Arachnoskeleton 3173 | -10/Subcaves | Discovered new exit (range 7) 3376 | -10/Subcaves | Disturbed a concealed Subdweller 3471 | -10/Subcaves | A swath of the cavern ceiling suddenly collapsed 3590 | -10/Subcaves | A swath of the cavern ceiling suddenly collapsed 3887 | -10/Subcaves | Learned Materials non-interactive machine intel 4424 | -10/Subcaves | Visited Clippyterm 4428 | -10/Subcaves | Learned Factory fabricator intel 4690 | -10/Subcaves | Learned Materials emergency access door positions 4706 | -10/Subcaves | Disturbed a concealed Subdweller 4880 | -10/Subcaves | Shifting Twisted Machinery released Barrage Gun 5193 | -10/Subcaves | Entered Scraptown 5502 | -9/Scraptown | Scanned Subdweller tech in exchange for log data 5505 | -9/Scraptown | Learned Research terminal intel 5506 | -9/Scraptown | Learned Factory stockpile data 5508 | -9/Scraptown | Learned location of 1 exit from Research 5509 | -9/Scraptown | Learned Research stockpile data 5510 | -9/Scraptown | Learned location of Warlord (-5) 5530 | -9/Scraptown | Discovered new exit (range 5) 5645 | -9/Scraptown | Visited Assassins FH 5686 | -9/Scraptown | Visited Science Testing Area 5916 | -9/Scraptown | Visited Fellowship of the Rings 5941 | -9/Scraptown | Visited Spacefarers 6015 | -9/Scraptown | Visited Shadow of the Wyrm 6039 | -9/Scraptown | Visited Comm Corps 6119 | -9/Scraptown | Visited UFD Registry 6119 | -9/Scraptown | Registered with UFD as "Armorbucket" 6151 | -9/Scraptown | Visited A0-MCA Data Center 6159 | -9/Scraptown | Given a C- rating by A0-MCA 6165 | -9/Scraptown | Found A0-MCA's Component Scanner 6192 | -9/Scraptown | Visited Supply Room 6217 | -9/Scraptown | Visited Sword Containment 6232 | -9/Scraptown | Visited Chapter 10 6287 | -9/Scraptown | Delivered Scrap Shield to a Scientist 6431 | -9/Scraptown | Found Prototype Slashing Weapon 6431 | -9/Scraptown | Identified Companion Sword 6476 | -9/Scraptown | Visited Derelict Rescue Squad 6483 | -9/Scraptown | Found DRS Beacon 6507 | -9/Scraptown | Visited Analyses Database 6529 | -9/Scraptown | Visited DA-N13 Charitable Foundation 6534 | -9/Scraptown | Found DCF Scrap (30 items) 6566 | -9/Scraptown | Visited Scrap Suit Storage 6608 | -9/Scraptown | Visited Scrapoid Research Area 6643 | -9/Scraptown | Visited Cartography Club 6945 | -9/Scraptown | Learned location of Lower Caves (-6) 6945 | -9/Scraptown | Learned location of Hub_04(d) (-5) 6945 | -9/Scraptown | Learned 12 Factory zone layouts 6945 | -9/Scraptown | Learned 8 Access zone layouts 6945 | -9/Scraptown | Learned 4 Recycling zone layouts 6945 | -9/Scraptown | Learned 8 Lower Caves zone layouts 6945 | -9/Scraptown | Learned 12 Lower Caves zone layouts 6945 | -9/Scraptown | Learned 20 Upper Caves zone layouts 6945 | -9/Scraptown | Learned 20 Proximity Caves zone layouts 6945 | -9/Scraptown | Learned location of 1 exit from Factory 6945 | -9/Scraptown | Learned location of 2 exits from Upper Caves 7006 | -9/Scraptown | Found Deep Structural Scanner 7822 | -9/Scraptown | Met Optimus 7822 | -9/Scraptown | Accepted into 0bPrime 7889 | -9/Scraptown | Discovered new exit (range 3) 7894 | -9/Scraptown | Entered Factory 7894 | -6/Factory | Evolved 8 slots: Power x1, Propulsion x2, Utility x5 7895 | -6/Factory | Identified exit to Lower Caves 7896 | -6/Factory | Identified exit to Factory 7898 | -6/Factory | Loaded intel: 6 fabricator locations 8182 | -6/Factory | Build established: Hacker-Mutant 8394 | -6/Factory | Loaded intel: 8 recycling unit locations 8576 | -6/Factory | Repaired Broken Carbon-fiber Leg 8646 | -6/Factory | Identified exit to Garrison 8655 | -6/Factory | System corruption reached 10% 8714 | -6/Factory | Entered Garrison 8761 | -6/Garrison | Garrison Relay disabled 8806 | -6/Garrison | Phase Generator disabled 9026 | -6/Garrison | Installed Relay Interface Framework 9104 | -6/Garrison | Triggered checkpoint 9136 | -6/Garrison | Attached Arachnoskeleton, gained temporary slots: Propulsion x3 9148 | -6/Garrison | Lost 4 parts (1p2n1u) 9155 | -6/Garrison | Lost 4 allies 9228 | -6/Garrison | Triggered checkpoint 9289 | -6/Garrison | Garrison Relay disabled 9307 | -6/Garrison | Lost 4 parts (1p1n1u1w) 9534 | -6/Garrison | Triggered checkpoint 9534 | -6/Garrison | Build established: Bothacker-Mutant 9605 | -6/Garrison | Lost 5 allies 9670 | -6/Garrison | Discovered new exit (range 18) 9756 | -6/Garrison | Triggered checkpoint 9856 | -6/Garrison | Garrison Relay disabled 9897 | -6/Garrison | Discovered new exit (range 9) 9923 | -6/Garrison | Spotted B-86 Titan 10020 | -6/Garrison | Triggered checkpoint 10127 | -6/Garrison | Expanded RIF knowledge: Alert ID Control 10244 | -6/Garrison | Triggered checkpoint 10325 | -6/Garrison | Triggered checkpoint 10389 | -6/Garrison | Garrison Relay disabled 10445 | -6/Garrison | Discovered new exit (range 16) 10475 | -6/Garrison | Garrison Relay disabled 10510 | -6/Garrison | Entered Factory 10510 | -6/Factory | Accompanied by 3 allies 10631 | -6/Factory | Repaired Carbon-fiber Leg 10659 | -6/Factory | Discovered exit to Lower Caves (range 67) 10659 | -6/Factory | Discovered exit to Lower Caves (range 82) 10672 | -6/Factory | Fabricated Particle Reactor (x2) 10778 | -6/Factory | Spotted B-75 Beast 11349 | -6/Factory | Fabricated Weapon Mount (x2) 12038 | -6/Factory | Loaded intel: 8 recycling unit locations 12038 | -6/Factory | Learned location of Protoforge (-2) 12056 | -6/Factory | Core integrity fell below 50% 12177 | -6/Factory | Lost 7 parts (2p4n1u) 12237 | -6/Factory | Core integrity fell below 20% 12264 | -6/Factory | Lost 5 parts (1p4n) 12820 | -6/Factory | Destroyed by exploding Nuclear Reactor Last Messages --------------- (1 escort) A-15 Conveyor 1x Shock Maul 3x Gravity Neutralizer 4x Cld. Pulse Rifle A-15 Conveyor 1x Graphene Brace A-27 Freighter 6x Exp. Matter Compressor 6x Lgt. Neutrino Core 3x Enh. Fission Core 3x Cld. Impulse Thruster 2x Exp. Signal Interpreter 1x PL-3XN's Ring of Power (3 escorts) 12801_ Acquired Lgt. Fission Core. 12813_ K-01 Serf cleans the Neutrino Reactor. 12820_ Triggered Heavy Explosive Trap. 12820_ An explosion rips through the floor. 12820_ Nuclear Reactor explodes. Map ----- +----------------------------------------------------+ | ### !##############**** ## """ """ """ | | #### ###############*** ## """ """ """ | | #### ###############* ##! | | #### #################=#### | | #### == #####+########### | | #### ################# ##### #??# | | #### # ! #### ##### #??# | | #### # """ #### ##### #??# | | #### # * """ !#### ##### #??# """ | | #### # * """ #### ##### #??# """ | | #### # ####/#####+##?# """ | | #### ###/############ = #?# "" / | | #### ## # # ! #?# "" / | | #### + # #?# / | | ####### # | # """ """ #?# | | ######## ## # """ """ #?# | | # # ## """ """ # """ """ #?# | | # # ## """ """ # #?#######+ | | # """ # ## """ """ # #?????# % | | # """ # ## #####+#####?????# | | # """ # ######+####### #???????# | | #! # ######### | | # """ + w u T | | # """ # ## | | # """ ###+## ##### ## | | # # @ #???######## | | # """ # """ #?????????# " | | # """ # """k ###?????????# " | | # """ # """ ????######## | | # # ##???? # | | ######## ^ #????? # ##### | | ??????## [#????? # ##? | | ???????# * #????? # T#? | | ???????#+#########????? # #? ? | | ???????# #????????????? # ##??? | | ???????# #????????????? / #???? | | ???????# #????????????? # #???? | | ???????# #???????#### # #???? | | ???????# #???????############# #???? | | ########+#######?###### #???? | | ### #?###### #???? | | ### """""" #?### #???? | | ### """""" ##### #???? | | ### """""" ##### #???? | | ### """""" ##### #???? | | ### ##### ##### | | ### """""" # | | ### """""" # ^^ | | ### """""" + """" | | ### """""" # """" | +----------------------------------------------------+ Best States ------------- Heat Dissipation 56 Energy Generation 41 Energy Capacity 580 Matter Stores 300 Matter Capacity 300 Sight Range 21 Robot Scan Range 15 Terrain Scan Density 10 ECM Strength 2 Cloak Strength 2 Additional Mass Support 9 Armor Coverage 800 Evasion (%) 55 Melee Accuracy 5 Core Analysis 6 Recoil Reduction 2 Offensive Hacking 22 Defensive Hacking 11 Relay Coupler Types 4 Relay Coupler Value 63 Authchip Count 1 Item Schematics ----------------- Weapon Mount | -6/Factory | Hacked Robot Schematics ------------------ None Fabricated ------------ Particle Reactor | x2 | -6/Factory | Preloaded Weapon Mount | x2 | -6/Factory | Authchip Repaired ---------- EM Shotgun | 48% | -10/Materials Carbon-fiber Leg | 20% | -6/Factory | Broken Carbon-fiber Leg | 74% | -6/Factory Studied --------- Wheel | -6/Factory | Hacked Flexi-carbon Leg | -6/Factory | Hacked Alien Tech Used ----------------- None Achievements -------------- Bending The Rules Civilization 2243 Ew, Corruption Express Service Item+ Join The Dark Side Let Me Out Of Here Link The Feds Low-level Research Mindtrick Official Business Overwhelming Satisfying Throw Away The Key Versatile Watcher Gambling You Will Be Upgraded Challenges ------------ None Game ------ Seed BlanketPoweredBiocell Manual? 0 Play Time 01:59:57 Cumulative 638.0 hours Start 2025.11.19 @ 22:47:21 End 2025.11.20 @ 00:48:04 Sessions 1 Manual Loads 0 Difficulty Rogue Special Mode None Game No. 216 Rogue 200 Adventurer 15 Explorer 1 Win Type - Total 37 Types 10/3/10/2/2/0/6/3/1/0 Lore% 93 Gallery% 85 Achievement% 50 Wizard Run 0 Options --------- Layout 0 ASCII 0 Keyboard 0 Movement Numpad Keybinds 0 Fullscreen 1 Font 18/SmallcapsGlow Map View 76x50 Zoom Use 0% Tactical HUD 1 Map Filters NONE Filters NONE Steam 1 RUN: 2395c75d-911d-4460-ba34-6d350b1ec216